[Event "Istanbul Open 2018"]
[Site "Istanbul"]
[Date "2018.09.05"]
[Round "6"]
[White "Mehrinejad, Mansour"]
[Black "Bagci, Hikmet"]
[Result "1-0"]
[ECO "D03"]
[WhiteElo "1839"]
[BlackElo "1619"]
[Annotator "NA RC"]
[PlyCount "113"]
[EventDate "2018.09.02"]
[EventType "swiss"]
[EventCountry "TUR"]
[SourceTitle "playchess.com"]
[Source "ChessBase"]
[SourceQuality "1"]
[TimeControl "5400+30"]

1. d4 {[%emt 0:00:30]} Nf6 {[%emt 0:00:30]} 2. Bg5 {[%emt 0:00:00]} d5 {[%emt 0:00:30]} 3. Nf3 {[%emt 0:00:00]} e6 {[%emt 0:00:00]} 4. e3 {[%emt 0:00:30]} Be7 {[%emt 0:01:00]} 5. Bd3 {[%emt 0:00:00]} Nbd7 {[%emt 0:00:30]} 6. O-O {[%emt 0:00:00]} O-O {[%emt 0:01:30]} 7. Nbd2 {[%emt 0:00:30]} c5 {[%emt 0:00:30]} 8. c3 {[%emt 0:00:00]} a6 {[%emt 0:01:30]} 9. Ne5 {[%emt 0:01:00]} Nxe5 {[%emt 0:05:30]} 10. dxe5 {[%emt 0:00:30] D03: 1 d4 d5 2 Nf3 Nf6 3 Bg5, including Torre Attack with early ...d5} Nd7 {[%emt 0:00:30]} 11. Bxe7 {[%emt 0:00:30]} (11. Bf4 b5 12. a4 Rb8 13. axb5 axb5 14. b4 d4 15. cxd4 cxd4 16. Ne4 dxe3 17. fxe3 Bb7 {1-0 (29) Delgado Ramirez,N (2534)-Escobar Forero,A (2457) Havana 2006}) 11... Qxe7 {[%emt 0:00:00]} 12. f4 {[%emt 0:00:00]} f5 {[%emt 0:02:00]} 13. Qh5 $146 {[%emt 0:02:00]} ({Predecessor:} 13. g4 b5 14. gxf5 exf5 15. Rf3 c4 16. Bc2 Nc5 17. Rh3 Bb7 {1-0 (32) Beltz,M (2185)-Jahn,C (2210) Germany 1992}) 13... c4 {[%emt 0:02:30]} 14. Bc2 {[%emt 0:07:30]} Nc5 {[%emt 0:01:30]} 15. Nf3 {[%emt 0:02:30]} Bd7 {[%emt 0:00:30]} 16. Ng5 {[%emt 0:04:30]} h6 {[%emt 0:02:30]} 17. Nf3 {[%emt 0:03:30]} Ne4 {[%emt 0:05:30]} 18. Bxe4 {[%emt 0:05:30]} dxe4 {[%emt 0:03:30]} 19. Nd4 {[%emt 0:00:30]} Be8 {[%emt 0:03:30]} 20. Qh3 {[%emt 0:02:30]} Rd8 {[%emt 0:05:30]} 21. Kh1 {[%emt 0:07:30]} h5 {[%emt 0:05:30]} 22. Rg1 {[%emt 0:04:30]} g6 {[%emt 0:02:30]} 23. Qg3 {[%emt 0:00:30]} Kh7 {[%emt 0:01:30]} 24. h3 {[%emt 0:01:30]} Bf7 {[%emt 0:01:30]} 25. Rad1 {[%emt 0:12:30]} Rd5 {[%emt 0:01:30]} 26. Rd2 {[%emt 0:01:30]} Rfd8 {[%emt 0:00:00]} 27. Qe1 {[%emt 0:06:30]} h4 {[%emt 0:13:00]} 28. g3 {[%emt 0:01:30]} hxg3 {[%emt 0:00:00]} 29. Qxg3 {[%emt 0:01:30]} Rh8 {[%emt 0:01:00]} 30. h4 {[%emt 0:03:30]} Qe8 {[%emt 0:03:30]} 31. Rh2 {[%emt 0:01:30]} Rg8 {[%emt 0:01:30]} 32. Kg2 {[%emt 0:06:30]} Rd7 {[%emt 0:06:30]} 33. Kf2 {[%emt 0:00:30]} Qf8 $2 {[%emt 0:04:30] [#]} (33... Qd8 $16 {war nötig.} 34. Qg5 Rh8) 34. Qg5 {[%emt 0:05:30]} (34. h5 $142 $1 {[%mdl 512]} gxh5 {[#]} 35. Nxe6 $1 {[%mdl 512]} Rd2+ 36. Kf1 Rd1+ 37. Ke2) 34... Qe7 $2 {[%emt 0:08:44] [#]} (34... Qe8 {is tougher.} 35. Qf6 Qe7) 35. h5 $1 {[%emt 0:02:45]} Qxg5 {[%emt 0:07:09]} 36. hxg6+ {[%emt 0:00:12]} ({Und nicht} 36. Rxg5 gxh5 37. Rxg8 Kxg8 $15) 36... Kg7 {[%emt 0:00:40]} 37. Rxg5 {[%emt 0:02:07]} Bxg6 {[%emt 0:00:41]} 38. Nxe6+ {[%emt 0:00:18]} Kf7 {[%emt 0:00:04]} 39. Nd4 {[%emt 0:00:39]} Kf8 {[%emt 0:03:10]} 40. Ke2 {[%emt 0:06:47]} Rh7 {[%emt 0:00:38]} 41. Rxh7 {[%emt 0:01:00]} Bxh7 {[%emt 0:00:02]} 42. Rxg8+ {[%emt 0:03:02]} Kxg8 {[%emt 0:00:03]} 43. Ne6 {[%emt 0:01:19]} Bg6 {[%emt 0:01:08]} 44. Nc5 {[%emt 0:00:27]} Kf7 {[%emt 0:02:39]} 45. Nxb7 {[%emt 0:00:18]} Ke7 {[%emt 0:00:32]} 46. Nd6 {[%emt 0:00:27]} Ke6 {[%emt 0:01:26]} 47. Nxc4 {[%emt 0:00:18]} Kd5 {[%emt 0:00:28]} 48. Nd6 {[%emt 0:00:11]} Bh5+ {[%emt 0:00:13]} 49. Kd2 {[%emt 0:00:13]} Bg4 {[%emt 0:00:04]} 50. c4+ {[%emt 0:00:20]} Kc5 {[%emt 0:00:16]} 51. Kc3 {[%emt 0:00:17]} a5 {[%emt 0:00:19]} 52. b3 {[%emt 0:00:50]} Bh3 {[%emt 0:00:29]} 53. a3 {[%emt 0:00:11]} Bg4 {[%emt 0:00:15]} 54. b4+ {[%emt 0:00:08]} axb4+ {[%emt 0:00:47]} 55. axb4+ {[%emt 0:00:08]} Kc6 {[%emt 0:00:17]} 56. Nb5 {[%emt 0:00:15]} Bh5 {[%emt 0:00:27]} 57. Nd4+ {[%emt 0:00:15]} 1-0

[Event "Istanbul Open 2018"]
[Site "Istanbul"]
[Date "2018.09.05"]
[Round "6"]
[White "Gonullu, Muhammed Sinan"]
[Black "Tirak, Mert"]
[Result "0-1"]
[ECO "A45"]
[WhiteElo "1816"]
[BlackElo "1941"]
[Annotator "NA RC"]
[PlyCount "114"]
[EventDate "2018.09.02"]
[EventType "swiss"]
[EventCountry "TUR"]
[SourceTitle "playchess.com"]
[Source "ChessBase"]
[SourceQuality "1"]
[TimeControl "5400+30"]

1. d4 {[%emt 0:16:30]} Nf6 {[%emt 0:02:30]} 2. Bg5 {[%emt 0:01:30]} e6 {[%emt 0:00:00]} 3. e4 {[%emt 0:00:30]} h6 {[%emt 0:01:00]} 4. Bxf6 {[%emt 0:00:00]} Qxf6 {[%emt 0:00:30]} 5. c3 {[%emt 0:01:00]} b6 {[%emt 0:00:30] A45: Trompowsky Attack} (5... d6 6. Bd3 g6 7. Ne2 Bg7 8. O-O O-O 9. f4 Qe7 10. e5 b6 11. Nd2 Bb7 12. Be4 Bxe4 13. Nxe4 Rd8 14. Qe1 {0-1 (62) Moiseenko,A (2667)-Wang,Y (2690) Riadh 2017}) 6. Nd2 {[%emt 0:00:30]} Bb7 {[%emt 0:00:30]} 7. Ngf3 {[%emt 0:00:30]} d5 {[%emt 0:04:30]} 8. exd5 $146 {[%emt 0:01:30]} ({Predecessor:} 8. Bd3 Qd8 9. Ne5 Bd6 10. Qa4+ c6 11. f4 O-O 12. exd5 exd5 {1-0 (40) Dimakiling,O (2491)-Atutubo,R (2330) Manila 2007}) 8... exd5 {[%emt 0:00:30]} 9. a4 {[%emt 0:00:30]} Bd6 {[%emt 0:00:30]} 10. Bd3 {[%emt 0:00:30]} O-O {[%emt 0:00:30]} 11. O-O {[%emt 0:00:00]} c5 {[%emt 0:00:00]} 12. Re1 {[%emt 0:01:00]} Nc6 {[%emt 0:02:00]} 13. Bb5 {[%emt 0:01:30]} Ne7 {[%emt 0:10:30]} 14. Bf1 {[%emt 0:03:30]} g5 {[%emt 0:04:30]} 15. Ne5 {[%emt 0:05:30]} Bxe5 {[%emt 0:09:30]} 16. dxe5 {[%emt 0:00:30]} Qg7 {[%emt 0:00:30]} 17. a5 {[%emt 0:09:30]} Ng6 {[%emt 0:02:30]} 18. axb6 {[%emt 0:00:30]} axb6 {[%emt 0:00:30]} 19. Rxa8 {[%emt 0:00:30]} Bxa8 {[%emt 0:00:30]} 20. Qb3 {[%emt 0:00:30]} Rb8 {[%emt 0:01:30]} 21. e6 {[%emt 0:00:00]} f5 {[%emt 0:02:30]} 22. Qb5 {[%emt 0:02:00]} Qc7 {[%emt 0:06:30]} 23. Qd7 {[%emt 0:16:30]} Qxd7 {[%emt 0:04:30]} 24. exd7 {[%emt 0:00:30]} Kf7 {[%emt 0:00:00]} 25. Bb5 {[%emt 0:00:00]} Ne7 {[%emt 0:00:00]} 26. Nf3 {[%emt 0:00:00]} Rd8 {[%emt 0:05:30]} 27. Ne5+ {[%emt 0:03:30]} Kf6 {[%emt 0:00:30]} 28. f3 {[%emt 0:00:30]} d4 {[%emt 0:02:30]} 29. cxd4 {[%emt 0:02:30]} cxd4 {[%emt 0:00:00]} 30. Nc4 {[%emt 0:00:30]} Bc6 {[%emt 0:01:00]} 31. Bxc6 {[%emt 0:01:30]} Nxc6 {[%emt 0:01:30]} 32. Nxb6 {[%emt 0:00:30]} d3 {[%emt 0:04:30]} 33. Rd1 {[%emt 0:04:30]} Ne5 {[%emt 0:00:30]} 34. Kf2 {[%emt 0:00:30]} f4 {[%emt 0:01:30]} 35. g3 {[%emt 0:02:30]} Ke6 {[%emt 0:01:30]} 36. gxf4 {[%emt 0:00:30]} gxf4 {[%emt 0:00:30]} 37. Rd2 $2 {[%emt 0:02:30] [#]} (37. b3 $14 {stays ahead.}) 37... Kd6 $1 {[%emt 0:08:30]} 38. Rd1 {[%emt 0:04:56]} Kc6 {[%emt 0:01:30]} 39. Na4 {[%emt 0:00:15]} Rxd7 {[%emt 0:03:30]} 40. Rc1+ {[%emt 0:02:35]} Kb5 {[%emt 0:02:10]} 41. Nc3+ {[%emt 0:00:16]} Kc4 {[%emt 0:02:18]} ({Black should play} 41... Kb4 $17 42. Ne4 d2) 42. Re1 {[%emt 0:02:33]} (42. Nd1+ $15 Kb3 43. Rc3+ Kb4 44. Rc8) 42... Nf7 {[%emt 0:05:06]} 43. Re4+ {[%emt 0:00:27] [#]} Rd4 $1 {[%emt 0:03:49]} 44. Re7 {[%emt 0:03:10]} Nd6 {[%emt 0:00:56]} 45. Ke1 {[%emt 0:02:51]} Kb3 {[%emt 0:00:17]} 46. Nd1 {[%emt 0:00:08]} Kc2 {[%emt 0:01:56]} 47. Rc7+ {[%emt 0:00:12]} Rc4 {[%emt 0:01:39]} 48. Rg7 $2 {[%emt 0:02:26]} (48. Rd7 Nb5 49. Nf2) 48... d2+ {[%emt 0:00:47]} 49. Ke2 {[%emt 0:00:24]} Nf5 {[%emt 0:00:03]} 50. Rg1 {[%emt 0:00:23]} Rc8 {[%emt 0:01:26]} 51. Nc3 {[%emt 0:00:21]} Nd4+ {[%emt 0:00:47]} 52. Kf2 {[%emt 0:00:09]} Kxb2 {[%emt 0:02:05]} 53. Ne4 $19 {[%emt 0:00:17]} Kc2 {[%emt 0:00:21]} 54. Nxd2 {[%emt 0:00:09]} Kxd2 {[%emt 0:00:03]} 55. Rg6 {[%emt 0:00:09]} Re8 {[%emt 0:00:51]} 56. Rxh6 {[%emt 0:00:09]} Re2+ {[%emt 0:00:10]} 57. Kf1 {[%emt 0:00:02]} Ke3 {[%emt 0:00:26]} 0-1

[Event "Istanbul Open 2018"]
[Site "Istanbul"]
[Date "2018.09.05"]
[Round "6"]
[White "Dogan, Sevval"]
[Black "Tahaoglu, Erkin"]
[Result "0-1"]
[ECO "A00"]
[WhiteElo "1808"]
[BlackElo "1613"]
[Annotator "NA"]
[PlyCount "68"]
[EventDate "2018.09.02"]
[EventType "swiss"]
[EventCountry "TUR"]
[SourceTitle "playchess.com"]
[Source "ChessBase"]
[SourceQuality "1"]
[TimeControl "5400+30"]

1. e4 {[%emt 0:00:30]} d5 {[%emt 0:00:30]} 2. Nc3 {[%emt 0:00:30]} dxe4 {[%emt 0:00:00]} 3. Nxe4 {[%emt 0:00:30]} Bf5 {[%emt 0:00:00]} 4. Ng3 {[%emt 0:00:00]} Bg6 {[%emt 0:00:30]} 5. d4 {[%emt 0:05:00]} Nf6 {[%emt 0:00:30]} 6. N1e2 {[%emt 0:00:30]} c5 {[%emt 0:04:30]} 7. c3 {[%emt 0:01:30]} Nc6 {[%emt 0:00:30]} 8. Qa4 {[%emt 0:01:30]} e6 {[%emt 0:03:30]} 9. Bg5 {[%emt 0:09:30]} Qb6 {[%emt 0:02:30]} 10. b3 {[%emt 0:07:30]} Nd5 {[%emt 0:04:30]} 11. Bd2 {[%emt 0:21:30]} Bd3 {[%emt 0:09:30]} 12. c4 {[%emt 0:07:30]} Ndb4 {[%emt 0:02:30]} 13. Bxb4 {[%emt 0:00:30]} Qxb4+ {[%emt 0:00:30]} 14. Qxb4 {[%emt 0:00:30]} Nxb4 {[%emt 0:00:30]} 15. Kd2 {[%emt 0:01:30]} O-O-O {[%emt 0:06:30]} 16. a3 {[%emt 0:11:30]} Bxe2 {[%emt 0:00:30]} 17. axb4 {[%emt 0:02:30]} Bxf1 {[%emt 0:00:30]} 18. Rhxf1 {[%emt 0:00:30]} cxd4 {[%emt 0:04:30]} 19. c5 {[%emt 0:05:30]} Kb8 {[%emt 0:02:30]} 20. f4 {[%emt 0:01:30]} g6 {[%emt 0:01:30]} 21. Kd3 {[%emt 0:00:30]} Be7 {[%emt 0:03:30]} 22. Ne4 {[%emt 0:00:57]} h5 {[%emt 0:03:30]} 23. Rfd1 {[%emt 0:00:44]} f5 {[%emt 0:01:30]} 24. Nd2 {[%emt 0:00:56]} g5 {[%emt 0:01:30]} 25. fxg5 {[%emt 0:01:36]} Bxg5 {[%emt 0:04:30]} 26. Nf3 {[%emt 0:00:18]} Be3 {[%emt 0:02:30]} 27. b5 $2 {[%emt 0:05:00]} (27. Ra5 $17) 27... Rhe8 {[%emt 0:01:30]} 28. Ra2 {[%emt 0:08:13]} e5 {[%emt 0:00:30]} 29. Kc4 $17 {[%emt 0:00:24]} d3 {[%emt 0:01:30]} 30. g3 {[%emt 0:05:20]} e4 {[%emt 0:00:30]} 31. Nd2 {[%emt 0:00:09]} Bh6 {[%emt 0:02:30]} 32. Rda1 {[%emt 0:00:57]} Bg7 {[%emt 0:00:30]} 33. Re1 {[%emt 0:00:49]} Rd4+ {[%emt 0:00:00]} 34. Kc3 {[%emt 0:00:26]} Ra4# {[%emt 0:00:00]} 0-1

[Event "Istanbul Open 2018"]
[Site "Istanbul"]
[Date "2018.09.05"]
[Round "6"]
[White "Kavacik, Ahmet"]
[Black "Goekkaya, Murat Bora"]
[Result "1-0"]
[ECO "D03"]
[WhiteElo "1800"]
[BlackElo "1611"]
[Annotator "NA RC"]
[PlyCount "77"]
[EventDate "2018.09.02"]
[EventType "swiss"]
[EventCountry "TUR"]
[SourceTitle "playchess.com"]
[Source "ChessBase"]
[SourceQuality "1"]
[TimeControl "5400+30"]

1. d4 {[%emt 0:01:30]} Nf6 {[%emt 0:00:30]} 2. Nf3 {[%emt 0:00:30]} g6 {[%emt 0:00:00]} 3. Bg5 {[%emt 0:00:30]} d5 {[%emt 0:02:00]} 4. Nbd2 {[%emt 0:01:30]} Nbd7 {[%emt 0:01:30]} 5. e3 {[%emt 0:01:30]} Bg7 {[%emt 0:03:30]} 6. c4 {[%emt 0:00:30]} c6 {[%emt 0:01:30] D03: Damenbauernspiele} 7. Bd3 {[%emt 0:00:30]} (7. h3 O-O 8. Rc1 Re8 9. cxd5 cxd5 10. Bf4 Qa5 11. a3 Ne4 12. Bd3 Nxd2 13. Qxd2 Qxd2+ 14. Kxd2 {½-½ (40) Balog,I (2540)-Papp,G (2597) Ajka 2018}) 7... O-O {[%emt 0:01:30]} 8. O-O {[%emt 0:00:30]} h6 {[%emt 0:00:30]} 9. Bh4 {[%emt 0:00:30]} Re8 {[%emt 0:08:30]} 10. b4 $146 {[%emt 0:11:30]} ({Vorgänger:} 10. Qc2 Nb6 11. Ne5 dxc4 12. Ndxc4 Be6 13. Na5 Qc8 14. a3 Ng4 15. Nxg4 Bxg4 16. f3 {0-1 (39) Giretti Kanev,J (2221)-Saldano Dayer,H (2436) Campillos 2006}) 10... e5 {[%emt 0:12:30]} 11. cxd5 {[%emt 0:02:30]} cxd5 {[%emt 0:00:00]} 12. dxe5 {[%emt 0:00:30]} Nxe5 {[%emt 0:00:00]} 13. Nxe5 {[%emt 0:00:30]} Rxe5 {[%emt 0:00:30]} 14. Nf3 {[%emt 0:00:30]} Bg4 {[%emt 0:02:30]} 15. h3 {[%emt 0:02:30]} Bxf3 {[%emt 0:00:30]} 16. Qxf3 {[%emt 0:00:00]} Qb6 {[%emt 0:03:30]} 17. a4 {[%emt 0:03:00]} Ne4 {[%emt 0:05:30]} 18. a5 {[%emt 0:11:30]} Qe6 {[%emt 0:07:30]} 19. Rad1 {[%emt 0:16:30]} Rf5 {[%emt 0:08:30]} 20. Qg4 {[%emt 0:05:30]} h5 {[%emt 0:06:30]} 21. Qe2 {[%emt 0:00:30]} g5 {[%emt 0:03:30]} 22. Bxe4 {[%emt 0:05:30]} Qxe4 {[%emt 0:01:30]} 23. Bg3 {[%emt 0:00:30]} h4 {[%emt 0:00:30]} 24. Bd6 {[%emt 0:01:30]} Rd8 {[%emt 0:04:30]} 25. Bc5 {[%emt 0:01:30]} a6 {[%emt 0:06:17]} 26. Qd3 {[%emt 0:09:30]} Re8 {[%emt 0:12:36]} 27. Qe2 {[%emt 0:01:30]} d4 {[%emt 0:00:23]} 28. Qg4 {[%emt 0:01:30]} ({Besser ist} 28. Rd3 $16) 28... dxe3 {[%emt 0:01:47]} 29. Qxe4 {[%emt 0:02:57]} Rxe4 {[%emt 0:00:08]} 30. Rd8+ {[%emt 0:00:30]} Kh7 {[%emt 0:00:08]} 31. fxe3 {[%emt 0:00:21]} Rxf1+ {[%emt 0:00:52]} 32. Kxf1 {[%emt 0:00:02]} Kg6 $2 {[%emt 0:02:04]} (32... Bc3 $11) 33. Rd7 {[%emt 0:00:36]} (33. Rg8 $18) 33... f5 $18 {[%emt 0:01:53]} (33... Rc4 34. Rxb7 Be5) 34. Rxb7 {[%emt 0:06:21]} Bc3 {[%emt 0:02:47]} 35. Ke2 {[%emt 0:00:47]} Kf6 {[%emt 0:00:30]} 36. Kd3 {[%emt 0:00:46]} Be1 {[%emt 0:00:30]} 37. Bd4+ {[%emt 0:00:37]} Ke6 {[%emt 0:01:11]} 38. b5 {[%emt 0:00:35]} Bxa5 {[%emt 0:00:46]} 39. bxa6 {[%emt 0:00:30]} 1-0

[Event "Istanbul Open 2018"]
[Site "Istanbul"]
[Date "2018.09.05"]
[Round "6"]
[White "Sar, Can"]
[Black "Eryilmaz, Emre"]
[Result "1-0"]
[ECO "B12"]
[WhiteElo "1800"]
[BlackElo "1432"]
[Annotator "NA"]
[PlyCount "87"]
[EventDate "2018.09.02"]
[EventType "swiss"]
[EventCountry "TUR"]
[SourceTitle "playchess.com"]
[Source "ChessBase"]
[SourceQuality "1"]
[TimeControl "5400+30"]

1. e4 {[%emt 0:00:00]} c6 {[%emt 0:00:00]} 2. d4 {[%emt 0:00:00]} d5 {[%emt 0:00:00]} 3. e5 {[%emt 0:00:30]} Bf5 {[%emt 0:00:30]} 4. Nf3 {[%emt 0:01:30]} e6 {[%emt 0:05:30]} 5. Be2 {[%emt 0:00:30]} Nd7 {[%emt 0:00:30]} 6. O-O {[%emt 0:00:30]} c5 {[%emt 0:00:30]} 7. Be3 {[%emt 0:00:30]} Ne7 {[%emt 0:08:30]} 8. c4 {[%emt 0:04:30]} Bxb1 {[%emt 0:09:30] B12: Caro-Kann (Vorstoß-Variante)} (8... dxc4 9. Na3 c3 10. Nb5 Nd5 11. Nxc3 Nxc3 12. bxc3 Be7 13. dxc5 Bxc5 14. Qa4 Bxe3 15. Rad1 a6 16. fxe3 b5 17. Qf4 {1-0 (25) Shirov,A (2739)-Eljanov,P (2755) Moscow 2010 CBM 139 [CB]}) 9. Rxb1 {[%emt 0:00:30]} Nc6 $146 {[%emt 0:00:30]} ({Vorgänger:} 9... dxc4 10. Bxc4 Nf5 11. d5 Qb6 12. dxe6 fxe6 13. Ng5 Nxe5 14. Bxe6 Nxe3 15. fxe3 Be7 16. Qd5 Bf6 17. Nf7 Ke7 18. Nxe5 Rad8 19. Bd7 Rhf8 20. Rbd1 {1-0 (20) Kociscak,J (2285)-Lys,J (2174) Ostrava 2011}) 10. cxd5 {[%emt 0:00:30]} exd5 {[%emt 0:01:30]} 11. Qb3 {[%emt 0:05:30]} c4 {[%emt 0:13:30]} 12. Qxb7 {[%emt 0:00:30]} Nb4 {[%emt 0:00:30]} 13. Qb5 {[%emt 0:00:30]} Rb8 {[%emt 0:00:30]} 14. Qa4 {[%emt 0:00:30]} Rb6 {[%emt 0:00:30]} 15. a3 {[%emt 0:01:30]} Ra6 {[%emt 0:10:30]} 16. Qd1 {[%emt 0:00:00]} Nc6 {[%emt 0:00:30]} 17. b3 {[%emt 0:00:00]} Na5 {[%emt 0:01:30]} 18. bxc4 {[%emt 0:01:30]} Nxc4 {[%emt 0:00:30]} 19. Bg5 {[%emt 0:06:30]} Be7 {[%emt 0:00:30]} 20. Bxe7 {[%emt 0:00:30]} Qxe7 {[%emt 0:00:30]} 21. Bxc4 {[%emt 0:04:30]} dxc4 {[%emt 0:00:30]} 22. d5 {[%emt 0:00:00]} O-O {[%emt 0:07:30]} 23. Rb7 {[%emt 0:00:00]} Rb8 {[%emt 0:03:30]} 24. Rxb8+ {[%emt 0:01:30]} Nxb8 {[%emt 0:00:30]} 25. Qc2 {[%emt 0:00:30]} Qc7 {[%emt 0:01:30]} 26. d6 {[%emt 0:03:30]} Qc6 {[%emt 0:02:30]} 27. Qc3 {[%emt 0:00:30]} Nd7 {[%emt 0:00:30]} 28. h3 {[%emt 0:00:30]} h6 {[%emt 0:01:30]} 29. Rc1 {[%emt 0:00:30]} Nb6 {[%emt 0:01:30]} 30. Nd4 {[%emt 0:02:30]} Qc5 {[%emt 0:02:30]} 31. Nc2 {[%emt 0:00:30]} Nd7 {[%emt 0:03:30]} 32. Rd1 {[%emt 0:00:00]} Ra5 {[%emt 0:01:30]} 33. Nb4 {[%emt 0:03:00]} Qxe5 {[%emt 0:04:14]} 34. Qxc4 {[%emt 0:00:30]} Qe6 {[%emt 0:01:30]} 35. Qd3 {[%emt 0:04:30]} Re5 {[%emt 0:04:20]} 36. Nc2 {[%emt 0:05:30]} a5 $16 {[%emt 0:02:04]} 37. Ne3 {[%emt 0:00:30]} f5 {[%emt 0:05:00]} 38. g3 {[%emt 0:01:30]} g5 {[%emt 0:01:04]} 39. Rc1 {[%emt 0:00:30]} f4 {[%emt 0:03:01]} 40. Rc8+ {[%emt 0:05:30]} Kg7 {[%emt 0:00:15]} 41. Ng4 {[%emt 0:02:30]} Rd5 {[%emt 0:02:06]} 42. Qc3+ {[%emt 0:00:00]} Nf6 {[%emt 0:03:51]} 43. Nxf6 {[%emt 0:00:00]} Qxf6 {[%emt 0:00:31]} 44. Rg8+ {[%emt 0:00:30]} 1-0

[Event "Istanbul Open 2018"]
[Site "Istanbul"]
[Date "2018.09.05"]
[Round "6"]
[White "Kelpetin, Umut Can"]
[Black "Ozveren, Ali Bulent"]
[Result "0-1"]
[ECO "B06"]
[WhiteElo "1798"]
[BlackElo "1849"]
[Annotator "NA RC"]
[PlyCount "64"]
[EventDate "2018.09.02"]
[EventType "swiss"]
[EventCountry "TUR"]
[SourceTitle "playchess.com"]
[Source "ChessBase"]
[SourceQuality "1"]
[TimeControl "5400+30"]

1. e4 {[%emt 0:05:30]} c6 {[%emt 0:03:30]} 2. d4 {[%emt 0:01:30]} g6 {[%emt 0:00:30]} 3. Nc3 {[%emt 0:00:30]} Bg7 {[%emt 0:00:30]} 4. Bc4 {[%emt 0:03:30]} e6 {[%emt 0:05:30]} 5. d5 {[%emt 0:01:30] B06: Modern Defence} (5. Nf3 d5 6. Bd3 Nd7 7. Bf4 Ne7 8. Qd2 O-O 9. O-O c5 10. Nb5 Nf6 11. Bc7 Qe8 12. exd5 Nfxd5 {1-0 (32) Lenderman,A (2600)-Abdulov,O (2372) Baku 2016}) 5... b5 {[%emt 0:06:30]} 6. Bb3 {[%emt 0:01:30]} b4 {[%emt 0:13:30]} 7. Na4 {[%emt 0:01:30]} Qh4 $146 {[%emt 0:04:30]} ({Predecessor:} 7... Nf6 8. dxe6 fxe6 9. Qd4 O-O 10. Bg5 Nxe4 11. Bxe6+ Kh8 12. Qxe4 Qxg5 {1-0 (28) Dongre,R (2225)-Kakageldyev,A (2455) Kolkata 1994}) 8. Qf3 {[%emt 0:08:30]} Nf6 {[%emt 0:01:30]} 9. Bf4 {[%emt 0:05:30]} O-O {[%emt 0:04:30]} 10. O-O-O {[%emt 0:04:30]} cxd5 {[%emt 0:00:30]} 11. exd5 {[%emt 0:01:30]} Bb7 {[%emt 0:00:30]} 12. g3 {[%emt 0:05:30]} Qh5 {[%emt 0:03:30]} 13. Qxh5 {[%emt 0:02:30]} gxh5 {[%emt 0:04:30]} 14. Nc5 {[%emt 0:04:30]} Bxd5 {[%emt 0:00:30]} 15. Bxd5 {[%emt 0:04:30]} Nxd5 {[%emt 0:00:30]} 16. Bd6 {[%emt 0:05:30]} Rc8 {[%emt 0:00:30]} 17. Ne2 {[%emt 0:03:30]} Rc6 {[%emt 0:03:30]} 18. Bxb8 {[%emt 0:18:59]} Rxb8 {[%emt 0:04:30]} 19. Nb3 {[%emt 0:01:06]} Rc7 {[%emt 0:05:30]} 20. Kb1 {[%emt 0:01:24]} Nb6 {[%emt 0:06:30]} 21. Rc1 {[%emt 0:07:26]} Na4 {[%emt 0:10:23]} 22. Ned4 {[%emt 0:00:09]} Rc4 {[%emt 0:03:03]} 23. Rhd1 {[%emt 0:00:28]} h4 {[%emt 0:02:33]} 24. f4 {[%emt 0:00:14]} hxg3 {[%emt 0:00:39]} 25. hxg3 {[%emt 0:00:30]} d5 {[%emt 0:01:35]} 26. Na5 {[%emt 0:03:50]} (26. Rd3 $17 {war nötig.}) 26... Rbc8 {[%emt 0:00:53]} 27. Nxc4 {[%emt 0:00:47]} Rxc4 {[%emt 0:00:38]} 28. c3 {[%emt 0:01:01]} bxc3 {[%emt 0:07:40]} 29. b3 {[%emt 0:00:02] [#]} c2+ $1 {[%emt 0:00:11]} 30. Rxc2 {[%emt 0:00:46]} Nc3+ {[%emt 0:00:17]} 31. Kc1 {[%emt 0:03:47]} (31. Rxc3 $142 Rxc3 32. g4) 31... Nxa2+ $19 {[%emt 0:02:08]} ({Inferior is} 31... Nxd1 32. bxc4 Ne3 33. c5 $11) 32. Kb2 {[%emt 0:01:15]} Bxd4+ {[%emt 0:00:11]} 0-1

[Event "Istanbul Open 2018"]
[Site "Istanbul"]
[Date "2018.09.05"]
[Round "6"]
[White "Sarikavak, Serdar Ihsan"]
[Black "Guven, Oguz Kagan"]
[Result "0-1"]
[ECO "B92"]
[WhiteElo "1798"]
[BlackElo "2022"]
[Annotator "NA"]
[PlyCount "52"]
[EventDate "2018.09.02"]
[EventType "swiss"]
[EventCountry "TUR"]
[SourceTitle "playchess.com"]
[Source "ChessBase"]
[SourceQuality "1"]
[TimeControl "5400+30"]

1. e4 {[%emt 0:16:30]} c5 {[%emt 0:00:30]} 2. Nf3 {[%emt 0:03:30]} d6 {[%emt 0:00:30]} 3. d4 {[%emt 0:00:30]} cxd4 {[%emt 0:00:30]} 4. Nxd4 {[%emt 0:00:00]} Nf6 {[%emt 0:00:00]} 5. Nc3 {[%emt 0:00:00]} a6 {[%emt 0:00:00]} 6. Be2 {[%emt 0:00:30]} e5 {[%emt 0:00:00]} 7. Nb3 {[%emt 0:00:30]} Be7 {[%emt 0:00:00]} 8. O-O {[%emt 0:00:00]} O-O {[%emt 0:00:00]} 9. f4 {[%emt 0:01:00]} Nc6 {[%emt 0:03:00]} 10. Kh1 {[%emt 0:14:30]} b5 {[%emt 0:04:30] B92: Sizilianisch (Najdorf-Variante mit 6.Le2)} 11. Bf3 {[%emt 0:03:30]} Bb7 {[%emt 0:14:30]} (11... Na5 12. Nxa5 Qxa5 13. fxe5 dxe5 14. Bg5 Bb7 15. Qe1 Qc7 16. a3 Ne8 17. Bxe7 Qxe7 18. a4 {0-1 (53) Dervishi,E (2552)-Ibrahimov,R (2518) Riadh 2017}) 12. f5 {[%emt 0:08:30]} Na5 {[%emt 0:07:30]} 13. Bg5 $146 {[%emt 0:09:30]} ({Vorgänger:} 13. Nxa5 Qxa5 14. a3 b4 15. Na2 d5 16. axb4 Qb6 17. exd5 e4 18. Be2 Nxd5 {0-1 (35) Umudova,N (2230)-Khalafova,N (2065) Tbilisi 2011}) 13... Nc4 {[%emt 0:01:30]} 14. Nd2 {[%emt 0:04:30]} Rc8 {[%emt 0:05:30]} 15. Nxc4 {[%emt 0:14:30]} Rxc4 {[%emt 0:00:00]} 16. Rc1 {[%emt 0:02:58]} b4 {[%emt 0:02:00]} 17. Bxf6 {[%emt 0:03:16]} Bxf6 {[%emt 0:00:30]} 18. Nd5 {[%emt 0:00:14]} Bg5 {[%emt 0:00:30]} 19. Rb1 {[%emt 0:04:32]} Bxd5 {[%emt 0:01:30]} 20. Qxd5 {[%emt 0:01:49]} Rxc2 {[%emt 0:01:30]} 21. Rfd1 {[%emt 0:04:49]} (21. Qd3 $15 Rc6 22. Bd1) 21... Bf4 {[%emt 0:01:30]} 22. Bg4 {[%emt 0:04:21]} Qh4 {[%emt 0:04:30]} 23. Bh3 {[%emt 0:00:02] [#]} Rfc8 $19 {[%emt 0:00:30]} 24. Qxd6 {[%emt 0:01:30]} Rxg2 {[%emt 0:00:30]} 25. Kxg2 {[%emt 0:01:27]} Rc2+ {[%emt 0:00:30]} 26. Kg1 {[%emt 0:00:02]} Qf2+ {[%emt 0:00:00]} 0-1